[Event "*** Titled Tuesday Blitz"]
[Site "Chess.com"]
[Date "2020.10.27"]
[Round "1"]
[White "CM_rui"]
[Black "Pultis"]
[Result "0-1"]
[WhiteElo "2361"]
[BlackElo "2712"]
[TimeControl "180+1"]
[EndTime "10:05:35 PDT"]
[Termination "Pultis won by resignation"]

1. e4 {[%clk 0:03:00.9]} 1... c6 {[%clk 0:02:59.1]} 2. d4 {[%clk 0:02:58.6]}
2... d5 {[%clk 0:02:57.9]} 3. Nc3 {[%clk 0:02:58.8]} 3... g6 {[%clk 0:02:56.2]}
4. Nf3 {[%clk 0:02:56.4]} 4... Bg7 {[%clk 0:02:56.3]} 5. e5 {[%clk 0:02:56.1]}
5... Nh6 {[%clk 0:02:55.2]} 6. Be2 {[%clk 0:02:54.1]} 6... O-O {[%clk
0:02:54.4]} 7. O-O {[%clk 0:02:53.6]} 7... f6 {[%clk 0:02:54.6]} 8. exf6 {[%clk
0:02:51.3]} 8... exf6 {[%clk 0:02:54.3]} 9. Re1 {[%clk 0:02:51.5]} 9... Nf7
{[%clk 0:02:53.1]} 10. Bf4 {[%clk 0:02:51]} 10... Nd7 {[%clk 0:02:50.6]} 11. h3
{[%clk 0:02:47.4]} 11... Re8 {[%clk 0:02:50.5]} 12. Bd3 {[%clk 0:02:43.6]} 12...
Nf8 {[%clk 0:02:50.3]} 13. Qd2 {[%clk 0:02:40.4]} 13... Ne6 {[%clk 0:02:49.5]}
14. Bg3 {[%clk 0:02:39]} 14... Bh6 {[%clk 0:02:49.3]} 15. Qd1 {[%clk 0:02:33.1]}
15... Ng7 {[%clk 0:02:47.1]} 16. Rxe8+ {[%clk 0:02:30.6]} 16... Qxe8 {[%clk
0:02:46.6]} 17. Qf1 {[%clk 0:02:28.3]} 17... Bf5 {[%clk 0:02:44.8]} 18. Re1
{[%clk 0:02:25.8]} 18... Qd7 {[%clk 0:02:44.8]} 19. Nh4 {[%clk 0:02:17.4]} 19...
Bxd3 {[%clk 0:02:37.5]} 20. Qxd3 {[%clk 0:02:18.3]} 20... Ne8 {[%clk 0:02:16.7]}
21. Ne2 {[%clk 0:02:00.3]} 21... Ned6 {[%clk 0:02:11.6]} 22. Nf4 {[%clk
0:01:49.7]} 22... Ne4 {[%clk 0:02:10.3]} 23. Nfxg6 {[%clk 0:01:05.9]} 23... hxg6
{[%clk 0:02:08.6]} 24. Nxg6 {[%clk 0:01:06.8]} 24... Re8 {[%clk 0:02:06.5]} 25.
Bh4 {[%clk 0:01:02.1]} 25... Qf5 {[%clk 0:02:04.4]} 26. f3 {[%clk 0:00:40.5]}
26... Qxg6 {[%clk 0:02:03.7]} 27. fxe4 {[%clk 0:00:40.4]} 27... dxe4 {[%clk
0:02:01.6]} 28. Qc4 {[%clk 0:00:40.3]} 28... Kg7 {[%clk 0:01:58.5]} 29. Rf1
{[%clk 0:00:35]} 29... Bg5 {[%clk 0:01:57.6]} 30. Bg3 {[%clk 0:00:30.8]} 30...
e3 {[%clk 0:01:55.4]} 31. Re1 {[%clk 0:00:28.5]} 31... Qe4 {[%clk 0:01:49.3]}
32. c3 {[%clk 0:00:22.7]} 32... Nh6 {[%clk 0:01:48.8]} 33. Qb3 {[%clk
0:00:21.4]} 33... Nf5 {[%clk 0:01:48.1]} 34. Qxb7+ {[%clk 0:00:20.2]} 34... Re7
{[%clk 0:01:48.1]} 35. Qb8 {[%clk 0:00:20.6]} 35... e2 {[%clk 0:01:39.1]} 36.
Bf2 {[%clk 0:00:18.9]} 36... Bd2 {[%clk 0:01:35.3]} 0-1

[Event "*** Titled Tuesday Blitz"]
[Site "Chess.com"]
[Date "2020.10.27"]
[Round "1"]
[White "Thee-Chessboy"]
[Black "MoreChessJulia"]
[Result "1-0"]
[WhiteElo "2516"]
[BlackElo "2016"]
[TimeControl "180+1"]
[EndTime "10:05:43 PDT"]
[Termination "Thee-Chessboy won by resignation"]

1. d4 {[%clk 0:02:59.5]} 1... g6 {[%clk 0:02:58.4]} 2. Nf3 {[%clk 0:02:58.7]}
2... Bg7 {[%clk 0:02:58.1]} 3. g3 {[%clk 0:02:59.2]} 3... b6 {[%clk 0:02:58]} 4.
Bg2 {[%clk 0:02:59.3]} 4... Bb7 {[%clk 0:02:58.3]} 5. O-O {[%clk 0:02:59.7]}
5... d6 {[%clk 0:02:58.4]} 6. c4 {[%clk 0:02:59.6]} 6... Nd7 {[%clk 0:02:58.1]}
7. Nc3 {[%clk 0:02:59.9]} 7... f5 {[%clk 0:02:57.8]} 8. Qc2 {[%clk 0:02:59.6]}
8... Ngf6 {[%clk 0:02:55.9]} 9. d5 {[%clk 0:02:59.4]} 9... h6 {[%clk 0:02:53.4]}
10. Nd4 {[%clk 0:02:58.8]} 10... Nf8 {[%clk 0:02:48.9]} 11. Rd1 {[%clk
0:02:55.3]} 11... Qd7 {[%clk 0:02:44.9]} 12. e4 {[%clk 0:02:53.7]} 12... Nxe4
{[%clk 0:02:40]} 13. Nxe4 {[%clk 0:02:53.4]} 13... fxe4 {[%clk 0:02:38]} 14.
Bxe4 {[%clk 0:02:53.7]} 14... O-O-O {[%clk 0:02:37.6]} 15. Nc6 {[%clk
0:02:47.9]} 15... Qg4 {[%clk 0:02:13.5]} 16. Nxd8 {[%clk 0:02:33.4]} 16... Kxd8
{[%clk 0:02:12.5]} 17. Be3 {[%clk 0:02:32.1]} 17... Nd7 {[%clk 0:02:11]} 18.
Bxg6 {[%clk 0:02:15.5]} 18... Ne5 {[%clk 0:02:10.1]} 19. Be4 {[%clk 0:02:15]}
19... h5 {[%clk 0:02:01.3]} 20. f4 {[%clk 0:02:10.9]} 20... Nd7 {[%clk
0:01:54.9]} 21. Bf5 {[%clk 0:02:00.9]} 21... Qf3 {[%clk 0:01:54.3]} 22. Qf2
{[%clk 0:02:00.3]} 22... Qxf2+ {[%clk 0:01:53.5]} 23. Bxf2 {[%clk 0:01:59.9]}
23... h4 {[%clk 0:01:50.5]} 24. Bxd7 {[%clk 0:01:56.3]} 24... Kxd7 {[%clk
0:01:49.9]} 25. Bd4 {[%clk 0:01:56.1]} 25... Bf6 {[%clk 0:01:33.3]} 26. Bxf6
{[%clk 0:01:55.6]} 26... exf6 {[%clk 0:01:33.2]} 27. Re1 {[%clk 0:01:55.8]}
27... Ba6 {[%clk 0:01:32.5]} 28. b3 {[%clk 0:01:55.3]} 28... b5 {[%clk
0:01:32.6]} 29. cxb5 {[%clk 0:01:52.3]} 29... Bxb5 {[%clk 0:01:32.4]} 30. Re6
{[%clk 0:01:51.3]} 30... Bc6 {[%clk 0:01:27.3]} 31. Rae1 {[%clk 0:01:40.4]}
31... Bxd5 {[%clk 0:01:26.6]} 32. Re7+ {[%clk 0:01:40.8]} 32... Kc8 {[%clk
0:01:24]} 33. Re8+ {[%clk 0:01:39.4]} 33... Rxe8 {[%clk 0:01:22.3]} 34. Rxe8+
{[%clk 0:01:40.3]} 34... Kd7 {[%clk 0:01:22.1]} 35. Rf8 {[%clk 0:01:38.2]} 35...
hxg3 {[%clk 0:01:21.9]} 36. hxg3 {[%clk 0:01:37.4]} 36... Ke7 {[%clk 0:01:22.1]}
37. Rh8 {[%clk 0:01:35.3]} 37... f5 {[%clk 0:01:21.8]} 38. Kf2 {[%clk
0:01:35.2]} 38... Be4 {[%clk 0:01:21]} 39. Ke3 {[%clk 0:01:35.2]} 39... Kd7
{[%clk 0:01:17.3]} 40. a3 {[%clk 0:01:34.8]} 40... a5 {[%clk 0:01:14.6]} 41. b4
{[%clk 0:01:35.1]} 41... axb4 {[%clk 0:01:14.3]} 42. axb4 {[%clk 0:01:36]} 42...
Kc6 {[%clk 0:01:14.8]} 43. g4 {[%clk 0:01:33.4]} 43... Bd5 {[%clk 0:01:12.5]}
44. g5 {[%clk 0:01:32.1]} 44... Kb5 {[%clk 0:01:12.8]} 45. Rb8+ {[%clk
0:01:31.3]} 45... Kc4 {[%clk 0:01:10.7]} 46. g6 {[%clk 0:01:31.6]} 46... c5
{[%clk 0:01:10]} 47. bxc5 {[%clk 0:01:30.5]} 47... dxc5 {[%clk 0:01:09.9]} 48.
g7 {[%clk 0:01:31.1]} 48... Kc3 {[%clk 0:01:09.6]} 49. g8=Q {[%clk 0:01:31.2]}
49... Bxg8 {[%clk 0:01:09.7]} 50. Rxg8 {[%clk 0:01:32.1]} 1-0

[Event "*** Titled Tuesday Blitz"]
[Site "Chess.com"]
[Date "2020.10.27"]
[Round "1"]
[White "Quiet_Desperation"]
[Black "jacky72"]
[Result "0-1"]
[WhiteElo "1999"]
[BlackElo "2513"]
[TimeControl "180+1"]
[EndTime "10:05:44 PDT"]
[Termination "jacky72 won by resignation"]

1. e4 {[%clk 0:02:59.3]} 1... e5 {[%clk 0:02:59.8]} 2. Nf3 {[%clk 0:02:58.2]}
2... Nc6 {[%clk 0:03:00.7]} 3. Bb5 {[%clk 0:02:58.4]} 3... a6 {[%clk 0:03:00.8]}
4. Ba4 {[%clk 0:02:58.5]} 4... d6 {[%clk 0:03:01.3]} 5. c3 {[%clk 0:02:54.9]}
5... Bd7 {[%clk 0:03:01.2]} 6. O-O {[%clk 0:02:53.8]} 6... g6 {[%clk 0:03:01.6]}
7. d4 {[%clk 0:02:53.5]} 7... Bg7 {[%clk 0:03:01.9]} 8. h3 {[%clk 0:02:47.5]}
8... Nf6 {[%clk 0:02:57.8]} 9. Re1 {[%clk 0:02:46.8]} 9... O-O {[%clk
0:02:57.6]} 10. d5 {[%clk 0:02:43.5]} 10... Ne7 {[%clk 0:02:55.7]} 11. Bc2
{[%clk 0:02:43.3]} 11... h6 {[%clk 0:02:55.3]} 12. c4 {[%clk 0:02:43.4]} 12...
b5 {[%clk 0:02:54.9]} 13. c5 {[%clk 0:02:37.7]} 13... Nh5 {[%clk 0:02:52]} 14.
c6 {[%clk 0:02:36.7]} 14... Bc8 {[%clk 0:02:52.3]} 15. a4 {[%clk 0:02:31.9]}
15... bxa4 {[%clk 0:02:46.4]} 16. Nc3 {[%clk 0:02:19]} 16... Nf4 {[%clk
0:02:44.4]} 17. Ne2 {[%clk 0:01:56.2]} 17... Nxe2+ {[%clk 0:02:41.1]} 18. Qxe2
{[%clk 0:01:53.6]} 18... f5 {[%clk 0:02:42]} 19. Rxa4 {[%clk 0:01:48.1]} 19...
f4 {[%clk 0:02:41.2]} 20. Nh2 {[%clk 0:01:46.1]} 20... g5 {[%clk 0:02:39.6]} 21.
f3 {[%clk 0:01:46.4]} 21... h5 {[%clk 0:02:39.5]} 22. Bd1 {[%clk 0:01:45.1]}
22... Ng6 {[%clk 0:02:31.7]} 23. b4 {[%clk 0:01:43]} 23... Rb8 {[%clk
0:02:28.9]} 24. Bd2 {[%clk 0:01:34.2]} 24... Nh4 {[%clk 0:02:28.3]} 25. Qd3
{[%clk 0:01:27.6]} 25... Qf6 {[%clk 0:02:22.9]} 26. Re2 {[%clk 0:01:26.2]} 26...
Qg6 {[%clk 0:02:22.8]} 27. Be1 {[%clk 0:01:24.9]} 27... Rf7 {[%clk 0:02:16.9]}
28. Bxh4 {[%clk 0:01:23]} 28... gxh4 {[%clk 0:02:17.8]} 29. Bb3 {[%clk
0:01:15.1]} 29... Bxh3 {[%clk 0:02:15.8]} 30. Bc4 {[%clk 0:01:13.2]} 30... Bf6
{[%clk 0:02:08.1]} 31. Bxa6 {[%clk 0:01:07.8]} 31... Rg7 {[%clk 0:02:06.7]} 32.
Qc2 {[%clk 0:01:03.9]} 32... Bc8 {[%clk 0:02:02.5]} 33. Bxc8 {[%clk 0:01:03.6]}
33... Rxc8 {[%clk 0:02:03.4]} 34. b5 {[%clk 0:00:57.5]} 34... Rb8 {[%clk
0:02:01.2]} 35. Qd3 {[%clk 0:00:53.3]} 35... h3 {[%clk 0:01:58.6]} 36. Raa2
{[%clk 0:00:53.2]} 36... Bh4 {[%clk 0:01:52.8]} 37. Kh1 {[%clk 0:00:48.6]} 37...
hxg2+ {[%clk 0:01:51.7]} 38. Rxg2 {[%clk 0:00:47.8]} 38... Bg3 {[%clk
0:01:52.6]} 39. Qc4 {[%clk 0:00:18.8]} 39... Qf6 {[%clk 0:01:48.8]} 40. Qf1
{[%clk 0:00:15.1]} 40... Qh4 {[%clk 0:01:47.6]} 41. Qg1 {[%clk 0:00:14.8]} 41...
Rxb5 {[%clk 0:01:45.5]} 42. Ra8+ {[%clk 0:00:13.9]} 42... Kh7 {[%clk 0:01:44.7]}
0-1

[Event "*** Titled Tuesday Blitz"]
[Site "Chess.com"]
[Date "2020.10.27"]
[Round "1"]
[White "kingofthenil"]
[Black "SantoBlue"]
[Result "1-0"]
[WhiteElo "2457"]
[BlackElo "2829"]
[TimeControl "180+1"]
[EndTime "10:05:46 PDT"]
[Termination "kingofthenil won by resignation"]

1. e4 {[%clk 0:03:00.1]} 1... c5 {[%clk 0:02:56.6]} 2. d3 {[%clk 0:03:00.1]}
2... Nc6 {[%clk 0:02:56.2]} 3. g3 {[%clk 0:03:00.6]} 3... g6 {[%clk 0:02:55.9]}
4. Bg2 {[%clk 0:03:00.9]} 4... Bg7 {[%clk 0:02:56.2]} 5. f4 {[%clk 0:03:01.8]}
5... d6 {[%clk 0:02:55.6]} 6. Nf3 {[%clk 0:03:02.7]} 6... Nf6 {[%clk 0:02:54.1]}
7. O-O {[%clk 0:03:03.6]} 7... O-O {[%clk 0:02:54.7]} 8. Nc3 {[%clk 0:03:04.5]}
8... Rb8 {[%clk 0:02:54.5]} 9. h3 {[%clk 0:03:05.4]} 9... b5 {[%clk 0:02:54.5]}
10. g4 {[%clk 0:03:06.3]} 10... b4 {[%clk 0:02:54.4]} 11. Ne2 {[%clk 0:03:07.2]}
11... Nd7 {[%clk 0:02:52.1]} 12. Kh1 {[%clk 0:03:07]} 12... a5 {[%clk
0:02:52.6]} 13. Rb1 {[%clk 0:03:07.5]} 13... a4 {[%clk 0:02:53.1]} 14. Be3
{[%clk 0:03:07.1]} 14... Ba6 {[%clk 0:02:53.5]} 15. b3 {[%clk 0:03:06.8]} 15...
e6 {[%clk 0:02:45.2]} 16. f5 {[%clk 0:02:55.4]} 16... Nde5 {[%clk 0:02:34.5]}
17. Nf4 {[%clk 0:02:45.5]} 17... Nxf3 {[%clk 0:02:33.9]} 18. Qxf3 {[%clk
0:02:45.2]} 18... exf5 {[%clk 0:02:31.4]} 19. exf5 {[%clk 0:02:33.2]} 19... Nd4
{[%clk 0:02:29.9]} 20. Qf2 {[%clk 0:02:30.7]} 20... Bb7 {[%clk 0:02:25.8]} 21.
Nd5 {[%clk 0:02:25.4]} 21... axb3 {[%clk 0:02:18.1]} 22. axb3 {[%clk 0:02:22.9]}
22... Be5 {[%clk 0:02:07]} 23. Bh6 {[%clk 0:02:17.5]} 23... Bg7 {[%clk
0:01:57.6]} 24. Bxg7 {[%clk 0:01:31.7]} 24... Kxg7 {[%clk 0:01:55.9]} 25. f6+
{[%clk 0:01:31.7]} 25... Kh8 {[%clk 0:01:55]} 26. Rbe1 {[%clk 0:01:32.6]} 26...
Ne6 {[%clk 0:01:49.8]} 27. Qh4 {[%clk 0:01:21.5]} 27... Qd7 {[%clk 0:01:21.3]}
28. Qh6 {[%clk 0:01:15.8]} 28... Rg8 {[%clk 0:01:21]} 29. Ne7 {[%clk 0:00:45.3]}
29... Bxg2+ {[%clk 0:01:21.9]} 30. Kxg2 {[%clk 0:00:45.3]} 30... Qb7+ {[%clk
0:01:22.8]} 31. Kh2 {[%clk 0:00:34.9]} 31... Nd4 {[%clk 0:01:15]} 32. Nxg8
{[%clk 0:00:34]} 32... Rxg8 {[%clk 0:01:15.9]} 33. Re8 {[%clk 0:00:31.6]} 33...
Ne6 {[%clk 0:01:16.4]} 34. Rxe6 {[%clk 0:00:29.3]} 1-0

[Event "*** Titled Tuesday Blitz"]
[Site "Chess.com"]
[Date "2020.10.27"]
[Round "1"]
[White "Th3_Hound"]
[Black "jamalm2"]
[Result "1-0"]
[WhiteElo "2507"]
[BlackElo "1946"]
[TimeControl "180+1"]
[EndTime "10:05:49 PDT"]
[Termination "Th3_Hound won on time"]

1. e4 {[%clk 0:02:59.4]} 1... c5 {[%clk 0:02:54.9]} 2. Nf3 {[%clk 0:02:57.3]}
2... e6 {[%clk 0:02:53.6]} 3. d4 {[%clk 0:02:57.1]} 3... cxd4 {[%clk 0:02:53.1]}
4. Nxd4 {[%clk 0:02:58]} 4... a6 {[%clk 0:02:52.7]} 5. Nc3 {[%clk 0:02:57.3]}
5... Qc7 {[%clk 0:02:51.7]} 6. Bd3 {[%clk 0:02:56.4]} 6... b5 {[%clk 0:02:47.2]}
7. O-O {[%clk 0:02:54.4]} 7... Bb7 {[%clk 0:02:46.3]} 8. Qe2 {[%clk 0:02:53.7]}
8... d6 {[%clk 0:02:43.2]} 9. f4 {[%clk 0:02:46.1]} 9... Nd7 {[%clk 0:02:41]}
10. Bd2 {[%clk 0:02:43.6]} 10... Ngf6 {[%clk 0:02:40.3]} 11. Kh1 {[%clk
0:02:43.1]} 11... Be7 {[%clk 0:02:39.7]} 12. Rae1 {[%clk 0:02:43.6]} 12... O-O
{[%clk 0:02:38.4]} 13. e5 {[%clk 0:02:41.7]} 13... dxe5 {[%clk 0:02:37]} 14.
fxe5 {[%clk 0:02:42.6]} 14... Nd5 {[%clk 0:02:35.7]} 15. Qh5 {[%clk 0:02:15.1]}
15... g6 {[%clk 0:02:04.4]} 16. Qh3 {[%clk 0:02:11.8]} 16... Nxe5 {[%clk
0:01:38]} 17. Nxe6 {[%clk 0:01:59.3]} 17... fxe6 {[%clk 0:01:20.3]} 18. Qxe6+
{[%clk 0:01:57.9]} 18... Nf7 {[%clk 0:01:10.6]} 19. Nxd5 {[%clk 0:01:55.4]}
19... Bxd5 {[%clk 0:01:10]} 20. Qxd5 {[%clk 0:01:51.6]} 20... Rad8 {[%clk
0:01:04.9]} 21. Qb3 {[%clk 0:01:48.6]} 21... Bh4 {[%clk 0:00:30.5]} 22. Re4
{[%clk 0:01:38.8]} 22... Be7 {[%clk 0:00:08.4]} 23. Ba5 {[%clk 0:01:32]} 23...
Qc6 {[%clk 0:00:04.8]} 24. Rxe7 {[%clk 0:01:30.4]} 24... Rxd3 {[%clk 0:00:03.9]}
25. cxd3 {[%clk 0:01:24.1]} 1-0

[Event "*** Titled Tuesday Blitz"]
[Site "Chess.com"]
[Date "2020.10.27"]
[Round "1"]
[White "oogee"]
[Black "AldokhinIvan"]
[Result "0-1"]
[WhiteElo "2213"]
[BlackElo "2573"]
[TimeControl "180+1"]
[EndTime "10:05:55 PDT"]
[Termination "AldokhinIvan won by resignation"]

1. d4 {[%clk 0:02:49.2]} 1... Nf6 {[%clk 0:02:34.3]} 2. c4 {[%clk 0:02:48.3]}
2... g6 {[%clk 0:02:34.3]} 3. Nc3 {[%clk 0:02:47.1]} 3... Bg7 {[%clk 0:02:34.7]}
4. e4 {[%clk 0:02:46.5]} 4... d6 {[%clk 0:02:35.2]} 5. Nf3 {[%clk 0:02:46.3]}
5... O-O {[%clk 0:02:35.6]} 6. Be2 {[%clk 0:02:46.5]} 6... Nc6 {[%clk
0:02:35.8]} 7. O-O {[%clk 0:02:46.5]} 7... Re8 {[%clk 0:02:35.8]} 8. h3 {[%clk
0:02:30.4]} 8... e5 {[%clk 0:02:35.4]} 9. d5 {[%clk 0:02:25]} 9... Nd4 {[%clk
0:02:35.2]} 10. Be3 {[%clk 0:02:07.7]} 10... Nxe2+ {[%clk 0:02:34.8]} 11. Qxe2
{[%clk 0:01:26.9]} 11... Nh5 {[%clk 0:02:35.7]} 12. c5 {[%clk 0:01:27.1]} 12...
dxc5 {[%clk 0:02:26.2]} 13. Bxc5 {[%clk 0:01:19.7]} 13... Nf4 {[%clk 0:02:24.7]}
14. Qe3 {[%clk 0:00:50.8]} 14... b6 {[%clk 0:02:20.4]} 15. Ba3 {[%clk
0:00:49.2]} 15... Bd7 {[%clk 0:01:36.9]} 16. Rfd1 {[%clk 0:00:37.7]} 16... Qc8
{[%clk 0:01:34.7]} 17. Nh2 {[%clk 0:00:28.9]} 17... Bh6 {[%clk 0:01:31.2]} 18.
Qg3 {[%clk 0:00:24.3]} 18... Nh5 {[%clk 0:01:21]} 19. Qh4 {[%clk 0:00:21.5]}
19... Bg7 {[%clk 0:01:20.9]} 20. Ne2 {[%clk 0:00:18.8]} 20... Bf6 {[%clk
0:01:20]} 21. Qg4 {[%clk 0:00:06.3]} 21... Bxg4 {[%clk 0:01:19.2]} 22. hxg4
{[%clk 0:00:06.7]} 22... Nf4 {[%clk 0:01:18.6]} 23. Ng3 {[%clk 0:00:06.9]} 23...
Qa6 {[%clk 0:01:17.2]} 24. Rac1 {[%clk 0:00:06.2]} 24... Bh4 {[%clk 0:01:17.1]}
25. Rxc7 {[%clk 0:00:05.4]} 25... Bxg3 {[%clk 0:01:08.2]} 26. fxg3 {[%clk
0:00:05]} 0-1

[Event "*** Titled Tuesday Blitz"]
[Site "Chess.com"]
[Date "2020.10.27"]
[Round "1"]
[White "ExtremeLearner"]
[Black "Oneofmyturns"]
[Result "0-1"]
[WhiteElo "2370"]
[BlackElo "2729"]
[TimeControl "180+1"]
[EndTime "10:05:59 PDT"]
[Termination "Oneofmyturns won on time"]

1. d4 {[%clk 0:03:00.9]} 1... Nf6 {[%clk 0:02:57.7]} 2. Nf3 {[%clk 0:02:55.3]}
2... d5 {[%clk 0:02:57.6]} 3. g3 {[%clk 0:02:52.2]} 3... c5 {[%clk 0:02:56.8]}
4. Bg2 {[%clk 0:02:46.9]} 4... cxd4 {[%clk 0:02:56.8]} 5. Nxd4 {[%clk
0:02:39.5]} 5... e5 {[%clk 0:02:56.9]} 6. Nb3 {[%clk 0:02:32.2]} 6... Be6 {[%clk
0:02:56.7]} 7. O-O {[%clk 0:02:21.7]} 7... Be7 {[%clk 0:02:56.4]} 8. Nc3 {[%clk
0:02:15.6]} 8... O-O {[%clk 0:02:52.4]} 9. Bg5 {[%clk 0:02:12]} 9... Nbd7 {[%clk
0:02:51.7]} 10. a4 {[%clk 0:01:59.8]} 10... Rc8 {[%clk 0:02:45.3]} 11. h3 {[%clk
0:01:36.3]} 11... h6 {[%clk 0:02:44.6]} 12. Bxf6 {[%clk 0:01:28.4]} 12... Nxf6
{[%clk 0:02:45.5]} 13. Re1 {[%clk 0:01:23.5]} 13... d4 {[%clk 0:02:35.2]} 14.
Nb5 {[%clk 0:01:10.1]} 14... a6 {[%clk 0:02:33.1]} 15. Na3 {[%clk 0:01:02.7]}
15... Qd7 {[%clk 0:02:30.1]} 16. Kh2 {[%clk 0:00:53.3]} 16... b6 {[%clk
0:02:28]} 17. e3 {[%clk 0:00:42.2]} 17... Rfd8 {[%clk 0:02:19.8]} 18. exd4
{[%clk 0:00:41.9]} 18... exd4 {[%clk 0:02:20.7]} 19. Nd2 {[%clk 0:00:38.4]}
19... Bb4 {[%clk 0:02:20.1]} 20. Re2 {[%clk 0:00:33.7]} 20... Qxa4 {[%clk
0:02:10.1]} 21. Ne4 {[%clk 0:00:26.8]} 21... Be7 {[%clk 0:02:02.9]} 22. Nxf6+
{[%clk 0:00:18.4]} 22... Bxf6 {[%clk 0:02:03.8]} 23. Rd2 {[%clk 0:00:18.2]}
23... Rc7 {[%clk 0:01:54.5]} 24. b3 {[%clk 0:00:11.5]} 24... Qb4 {[%clk
0:01:52]} 25. Rd3 {[%clk 0:00:08.1]} 25... Bf5 {[%clk 0:01:40.1]} 26. Nc4 {[%clk
0:00:08.6]} 26... b5 {[%clk 0:01:33.4]} 27. Na5 {[%clk 0:00:05.3]} 27... Rd6
{[%clk 0:01:28.2]} 28. Nb7 {[%clk 0:00:03.8]} 28... Rdd7 {[%clk 0:01:24.8]} 29.
Rf3 {[%clk 0:00:04]} 29... Bxc2 {[%clk 0:01:23.7]} 30. Qd2 {[%clk 0:00:03.6]}
30... Qxd2 {[%clk 0:01:23.6]} 0-1

[Event "*** Titled Tuesday Blitz"]
[Site "Chess.com"]
[Date "2020.10.27"]
[Round "1"]
[White "Zhuu96"]
[Black "Neftegor"]
[Result "1-0"]
[WhiteElo "2889"]
[BlackElo "2462"]
[TimeControl "180+1"]
[EndTime "10:06:00 PDT"]
[Termination "Zhuu96 won by resignation"]

1. d4 {[%clk 0:03:00]} 1... Nf6 {[%clk 0:02:57.6]} 2. c4 {[%clk 0:02:59.3]} 2...
e6 {[%clk 0:02:57.7]} 3. Nf3 {[%clk 0:02:59.3]} 3... Bb4+ {[%clk 0:02:53.2]} 4.
Bd2 {[%clk 0:02:58.7]} 4... Qe7 {[%clk 0:02:51.8]} 5. e3 {[%clk 0:02:57.2]} 5...
O-O {[%clk 0:02:47.6]} 6. Bd3 {[%clk 0:02:57]} 6... d5 {[%clk 0:02:44.2]} 7.
cxd5 {[%clk 0:02:53.5]} 7... exd5 {[%clk 0:02:42.6]} 8. O-O {[%clk 0:02:52.5]}
8... c6 {[%clk 0:02:38.6]} 9. h3 {[%clk 0:02:48.1]} 9... Nbd7 {[%clk 0:02:34.3]}
10. Nc3 {[%clk 0:02:46.7]} 10... Re8 {[%clk 0:02:29.6]} 11. Qc2 {[%clk
0:02:43.7]} 11... Nf8 {[%clk 0:02:29]} 12. Ne5 {[%clk 0:02:42.4]} 12... N6d7
{[%clk 0:02:22.2]} 13. f4 {[%clk 0:02:38.5]} 13... f6 {[%clk 0:02:18.9]} 14. Nf3
{[%clk 0:02:34.4]} 14... Nb6 {[%clk 0:02:16.4]} 15. Rae1 {[%clk 0:02:33.4]}
15... Qf7 {[%clk 0:01:59.6]} 16. e4 {[%clk 0:02:22.1]} 16... dxe4 {[%clk
0:01:55.5]} 17. Nxe4 {[%clk 0:02:20.5]} 17... Bxd2 {[%clk 0:01:56.4]} 18. Qxd2
{[%clk 0:02:04.9]} 18... Rd8 {[%clk 0:01:48]} 19. b3 {[%clk 0:01:49.2]} 19...
Be6 {[%clk 0:01:47.1]} 20. Nc5 {[%clk 0:01:48.2]} 20... Bd5 {[%clk 0:01:43.3]}
21. Nh4 {[%clk 0:01:48.1]} 21... Ne6 {[%clk 0:01:27.6]} 22. Nf5 {[%clk
0:01:46.1]} 22... Rab8 {[%clk 0:00:51]} 23. Qf2 {[%clk 0:01:44.3]} 23... Nc8
{[%clk 0:00:42.3]} 24. Qg3 {[%clk 0:01:38.7]} 24... Kh8 {[%clk 0:00:39.3]} 25.
Rxe6 {[%clk 0:01:10.4]} 25... b6 {[%clk 0:00:15.6]} 26. Qh4 {[%clk 0:01:08.6]}
26... bxc5 {[%clk 0:00:13.1]} 27. Nd6 {[%clk 0:01:08.6]} 27... Qg8 {[%clk
0:00:12.2]} 28. Nf7+ {[%clk 0:01:08.4]} 1-0

[Event "*** Titled Tuesday Blitz"]
[Site "Chess.com"]
[Date "2020.10.27"]
[Round "1"]
[White "LyonBeast"]
[Black "smshk35"]
[Result "1-0"]
[WhiteElo "3049"]
[BlackElo "2493"]
[TimeControl "180+1"]
[EndTime "10:06:01 PDT"]
[Termination "LyonBeast won by resignation"]

1. Nf3 {[%clk 0:03:00.6]} 1... Nf6 {[%clk 0:02:59.3]} 2. g3 {[%clk 0:02:58]}
2... g6 {[%clk 0:02:59.1]} 3. Bg2 {[%clk 0:02:58.3]} 3... Bg7 {[%clk 0:02:59.5]}
4. O-O {[%clk 0:02:59]} 4... O-O {[%clk 0:02:59.7]} 5. c4 {[%clk 0:02:59.6]}
5... d6 {[%clk 0:02:58.5]} 6. d4 {[%clk 0:02:58.6]} 6... Nc6 {[%clk 0:02:56.9]}
7. Nc3 {[%clk 0:02:50.7]} 7... e5 {[%clk 0:02:56.6]} 8. d5 {[%clk 0:02:50.1]}
8... Nb8 {[%clk 0:02:55.4]} 9. e4 {[%clk 0:02:49.2]} 9... a5 {[%clk 0:02:54]}
10. Ne1 {[%clk 0:02:49.1]} 10... Na6 {[%clk 0:02:53.2]} 11. Nd3 {[%clk
0:02:48.5]} 11... Nd7 {[%clk 0:02:50.9]} 12. Be3 {[%clk 0:02:40.5]} 12... b6
{[%clk 0:02:49]} 13. f4 {[%clk 0:02:37.5]} 13... Ndc5 {[%clk 0:02:36.2]} 14. f5
{[%clk 0:02:30.3]} 14... Nxd3 {[%clk 0:02:28.3]} 15. Qxd3 {[%clk 0:02:31.2]}
15... Nc5 {[%clk 0:02:27.9]} 16. Qd2 {[%clk 0:02:25.6]} 16... f6 {[%clk
0:02:20.3]} 17. h4 {[%clk 0:02:19.7]} 17... a4 {[%clk 0:02:09.3]} 18. Rf2 {[%clk
0:02:17.7]} 18... Ba6 {[%clk 0:02:07.8]} 19. Qe2 {[%clk 0:02:03.8]} 19... Rf7
{[%clk 0:01:57.2]} 20. Raf1 {[%clk 0:01:59.2]} 20... Qf8 {[%clk 0:01:53.3]} 21.
g4 {[%clk 0:01:59.7]} 21... Bc8 {[%clk 0:01:41.9]} 22. Bh3 {[%clk 0:01:45.3]}
22... Kh8 {[%clk 0:01:35.1]} 23. g5 {[%clk 0:01:42.4]} 23... Bd7 {[%clk
0:00:55.5]} 24. Kh2 {[%clk 0:01:31.6]} 24... Qe7 {[%clk 0:00:53.7]} 25. h5
{[%clk 0:01:25]} 25... fxg5 {[%clk 0:00:44]} 26. hxg6 {[%clk 0:01:24.4]} 26...
Rff8 {[%clk 0:00:34.3]} 27. Qh5 {[%clk 0:01:22.5]} 27... h6 {[%clk 0:00:34.5]}
28. f6 {[%clk 0:01:22.9]} 28... Rxf6 {[%clk 0:00:32.1]} 29. Rxf6 {[%clk
0:01:22.6]} 29... Bxf6 {[%clk 0:00:30.8]} 30. Qxh6+ {[%clk 0:01:21.7]} 30... Kg8
{[%clk 0:00:31]} 31. Rxf6 {[%clk 0:01:13.7]} 31... Bxh3 {[%clk 0:00:14.9]} 32.
Rf7 {[%clk 0:01:13.4]} 32... Qxf7 {[%clk 0:00:12.3]} 33. gxf7+ {[%clk
0:01:14.3]} 33... Kxf7 {[%clk 0:00:12.7]} 34. Kxh3 {[%clk 0:01:14.1]} 1-0